fUST/lending_fUST_20250630
["ID","MTS","AMOUNT","RATE_DAILY","PERIOD"]
[368634298,1751254241546,-460.0,0.00019611,2]
[368634299,1751254241557,-460.0,0.00019621,2]
[368634300,1751254241568,-460.0,0.00019621,2]
[368634301,1751254241578,-500.0,0.00019679,2]
[368634302,1751254241588,-1001.60636709,0.00019696,2]
[368634303,1751254241597,-500.0,0.000197,2]
[368634304,1751254241607,-168.0,0.00019739,2]
[368634305,1751254241618,-168.0,0.00019865,2]
[368634306,1751254241627,-833.48,0.0001988,2]
[368634307,1751254241637,-575.88,0.0001988,2]
[368634308,1751254241646,-460.0,0.00019881,2]
[368634309,1751254241656,-460.0,0.00019881,2]
[368634310,1751254241666,-460.0,0.00019881,2]
[368634311,1751254241676,-460.0,0.00019881,2]
[368634312,1751254241685,-1260.58,0.00019881,2]
[368634313,1751254241695,-460.0,0.00019881,2]
[368634314,1751254241704,-1746.41,0.00019881,2]
[368634315,1751254241714,-1131.52,0.00019881,2]
[368634316,1751254241723,-460.0,0.00019881,2]
[368634317,1751254241733,-870.28,0.00019881,2]
[368634318,1751254241743,-460.0,0.00019881,2]
[368634319,1751254241752,-1110.83,0.00019881,2]
[368634320,1751254241761,-460.0,0.00019881,2]
[368634321,1751254241771,-1741.06,0.00019881,2]
[368634322,1751254241781,-1280.47,0.00019881,2]
[368634323,1751254241791,-460.0,0.00019881,2]
[368634324,1751254241800,-460.0,0.00019881,2]
[368634325,1751254241810,-782.07,0.00019881,2]
[368634326,1751254241819,-460.0,0.00019881,2]
[368634327,1751254241830,-460.0,0.00019881,2]
[368634328,1751254241841,-2685.74593148,0.00019881,2]
[368634329,1751254241851,-500.0,0.00019881,2]
[368634330,1751254241862,-658.16577926,0.00019881,2]
[368634331,1751254241872,-2685.74593148,0.00019881,2]
[368634332,1751254241881,-658.16577926,0.00019881,2]
[368634333,1751254241891,-471.75864509,0.00019881,2]
[368634334,1751254241903,-2685.74593148,0.00019881,2]
[368634335,1751254241912,-658.16577926,0.00019881,2]
[368634336,1751254241922,-2685.74593148,0.00019881,2]
[368634337,1751254241932,-658.16577926,0.00019881,2]
[368634338,1751254241941,-2685.74593148,0.00019881,2]
[368634339,1751254241951,-658.16577926,0.00019881,2]
[368634340,1751254241960,-2685.74593148,0.00019881,2]
[368634341,1751254241970,-658.16577926,0.00019881,2]
[368634342,1751254241979,-2685.74593148,0.00019881,2]
[368634343,1751254241989,-658.16577926,0.00019881,2]
[368634344,1751254241998,-658.16577926,0.00019881,2]
[368634345,1751254242008,-2685.74593148,0.00019881,2]
[368634346,1751254242017,-2685.74593148,0.00019881,2]
[368634347,1751254242027,-2685.74593148,0.00019881,2]
[368634348,1751254242038,-658.16577926,0.00019881,2]
[368634349,1751254242048,-2685.74593148,0.00019881,2]
[368634350,1751254242057,-658.16577926,0.00019881,2]
[368634351,1751254242067,-2685.74593148,0.00019881,2]
[368634352,1751254242077,-2685.74593148,0.00019881,2]
[368634353,1751254242087,-2685.74593148,0.00019881,2]
[368634354,1751254242097,-658.16577926,0.00019881,2]
[368634355,1751254242107,-2685.74593148,0.00019881,2]
[368634356,1751254242116,-2685.74593148,0.00019881,2]
[368634357,1751254242126,-2685.74593148,0.00019881,2]
[368634358,1751254242138,-658.16577926,0.00019881,2]
[368634359,1751254242148,-658.16577926,0.00019881,2]
[368634360,1751254242160,-2685.74593148,0.00019881,2]
[368634361,1751254242169,-658.16577926,0.00019881,2]
[368634362,1751254242179,-658.16577926,0.00019881,2]
[368634363,1751254242191,-844.52,0.00019882,2]
[368634364,1751254242201,-460.0,0.00019882,2]
[368634365,1751254242211,-460.0,0.00019882,2]
[368634366,1751254242221,-460.0,0.00019882,2]
[368634367,1751254242232,-460.0,0.00019882,2]
[368634368,1751254242242,-460.0,0.00019882,2]
[368634369,1751254242251,-187.37217225,0.00019882,2]
[368634370,1751254242262,-460.0,0.00019882,2]
[368634371,1751254242272,-19916.57,0.00019882,2]
[368634372,1751254242281,-460.0,0.00019882,2]
[368634373,1751254242291,-460.0,0.00019882,2]
[368634374,1751254242300,-2713.24,0.00019882,2]
[368634375,1751254242310,-460.0,0.00019882,2]
[368634376,1751254242320,-681.89,0.00019882,2]
[368634377,1751254242331,-460.0,0.00019882,2]
[368634378,1751254242341,-687.06,0.00019882,2]
[368634379,1751254242351,-780.26,0.00019882,2]
[368634380,1751254242361,-460.0,0.00019882,2]
[368634381,1751254242372,-460.0,0.00019883,2]
[368634382,1751254242382,-460.0,0.00019883,2]
[368634383,1751254242394,-460.0,0.00019883,2]
[368634384,1751254242404,-460.0,0.00019885,2]
[368634385,1751254242414,-420.0,0.00019892,2]
[368634386,1751254242425,-397.39196565,0.00019895,2]
[368634387,1751254242434,-460.0,0.00019895,2]
[368634388,1751254242445,-3129.94025899,0.000199,2]
[368634389,1751254242455,-1544.0,0.00019989,2]
[368634390,1751254242465,-432.67833288,0.0002,2]
[368634391,1751254242475,-646.0,0.00020001,2]
[368634392,1751254242485,-2151.0,0.00020001,2]
[368634393,1751254242495,-406.0,0.00020001,2]
[368634394,1751254242504,-423.35,0.00020001,2]
[368634395,1751254242515,-966.0,0.00020001,2]
[368634396,1751254242525,-1000.0,0.00020018,2]
[368634397,1751254242535,-1000.0,0.00020018,2]
[368634398,1751254242545,-1000.0,0.00020023,2]
[368634399,1751254242554,-168.0,0.00020042,2]
[368634400,1751254242564,-3129.94025871,0.00020072,2]
[368634401,1751254242574,-500.0,0.00020073,2]
[368634402,1751254242583,-193.38486649,0.00020094,2]
[368634403,1751254242593,-833.48,0.00020154,2]
[368634404,1751254242602,-575.88,0.00020154,2]
[368634405,1751254242612,-460.0,0.00020155,2]
[368634406,1751254242621,-460.0,0.00020155,2]
[368634407,1751254242630,-460.0,0.00020155,2]
[368634408,1751254242640,-460.0,0.00020155,2]
[368634409,1751254242649,-1260.58,0.00020155,2]
[368634410,1751254242660,-460.0,0.00020155,2]
[368634411,1751254242669,-1746.41,0.00020155,2]
[368634412,1751254242679,-1131.52,0.00020155,2]
[368634413,1751254242689,-460.0,0.00020155,2]
[368634414,1751254242698,-870.28,0.00020155,2]
[368634415,1751254242709,-460.0,0.00020155,2]
[368634416,1751254242718,-1110.83,0.00020155,2]
[368634417,1751254242728,-460.0,0.00020155,2]
[368634418,1751254242738,-1741.06,0.00020155,2]
[368634419,1751254242748,-1280.47,0.00020155,2]
[368634420,1751254242757,-460.0,0.00020155,2]
[368634421,1751254242767,-460.0,0.00020155,2]
[368634422,1751254242777,-152.30005,0.00020155,2]
[368634423,1751254242788,-151.0,0.00020155,2]
[368634424,1751254242797,-151.0,0.00020155,2]
[368634425,1751254242807,-782.07,0.00020155,2]
[368634426,1751254242818,-154.553503,0.00020155,2]
[368634427,1751254242829,-151.0,0.00020155,2]
[368634428,1751254242840,-151.0,0.00020155,2]
[368634429,1751254242998,-151.0,0.00020155,2]
[368634430,1751254243008,-460.0,0.00020155,2]
[368634431,1751254243018,-460.0,0.00020155,2]
[368634432,1751254243027,-151.0,0.00020155,2]
[368634433,1751254243037,-160.304928,0.00020155,2]
[368634434,1751254243046,-844.52,0.00020156,2]
[368634435,1751254243056,-460.0,0.00020156,2]
[368634436,1751254243066,-460.0,0.00020156,2]
[368634437,1751254243075,-460.0,0.00020156,2]
[368634438,1751254243084,-460.0,0.00020156,2]
[368634439,1751254243093,-151.0,0.00020156,2]
[368634440,1751254243103,-151.0,0.00020156,2]
[368634442,1751254243112,-460.0,0.00020156,2]
[368634444,1751254243122,-460.0,0.00020156,2]
[368634446,1751254243131,-19916.57,0.00020156,2]
[368634448,1751254243140,-460.0,0.00020156,2]
[368634450,1751254243149,-460.0,0.00020156,2]
[368634451,1751254243158,-2713.24,0.00020156,2]
[368634453,1751254243168,-151.0,0.00020156,2]
[368634454,1751254243178,-460.0,0.00020156,2]
[368634455,1751254243192,-681.89,0.00020156,2]
[368634456,1751254243201,-151.0,0.00020156,2]
[368634457,1751254243211,-479.37670197,0.00020156,2]
[368634458,1751254243220,-687.06,0.00020156,2]
[368634459,1751254243230,-780.26,0.00020156,2]
[368634460,1751254243239,-460.0,0.00020156,2]
[368634461,1751254243249,-460.0,0.00020157,2]
[368634462,1751254243259,-460.0,0.00020157,2]
[368634463,1751254243269,-197.76011633,0.00020157,2]
[368634464,1751254243278,-168.0,0.00020166,2]
[368634465,1751254243287,-460.0,0.00020169,2]
[368634466,1751254243297,-224.879627,0.00020187,2]
[368634467,1751254243306,-1000.0,0.00020227,2]
[368634468,1751254243315,-3129.94025871,0.00020245,2]
[368634469,1751254243325,-1000.0,0.00020248,2]
[368634470,1751254243334,-168.0,0.0002028,2]
[368634471,1751254243344,-160.0,0.00020286,3]
[368634472,1751254243353,-3129.94025871,0.00020417,3]
[368634473,1751254243363,-1143.04,0.00020419,3]
[368634474,1751254243372,-571.52,0.00020419,3]
[368634475,1751254243381,-833.48,0.00020428,2]
[368634476,1751254243391,-575.88,0.00020428,2]
[368634477,1751254243400,-460.0,0.00020429,2]
[368634478,1751254243409,-460.0,0.00020429,2]
[368634479,1751254243418,-460.0,0.00020429,2]
[368634480,1751254243428,-460.0,0.00020429,2]
[368634481,1751254243438,-1260.58,0.00020429,2]
[368634482,1751254243447,-460.0,0.00020429,2]
[368634483,1751254243456,-1746.41,0.00020429,2]
[368634484,1751254243466,-1131.52,0.00020429,2]
[368634485,1751254243475,-460.0,0.00020429,2]
[368634487,1751254243484,-870.28,0.00020429,2]
[368634489,1751254243494,-460.0,0.00020429,2]
[368634491,1751254243503,-1110.83,0.00020429,2]
[368634493,1751254243513,-460.0,0.00020429,2]
[368634495,1751254243522,-1741.06,0.00020429,2]
[368634496,1751254243532,-1280.47,0.00020429,2]
[368634497,1751254243541,-460.0,0.00020429,2]
[368634498,1751254243551,-460.0,0.00020429,2]
[368634499,1751254243560,-782.07,0.00020429,2]
[368634500,1751254243569,-460.0,0.00020429,2]
[368634501,1751254243578,-460.0,0.00020429,2]
[368634502,1751254243587,-844.52,0.0002043,2]
[368634503,1751254243597,-460.0,0.0002043,2]
[368634504,1751254243606,-460.0,0.0002043,2]
[368634505,1751254243615,-460.0,0.0002043,2]
[368634506,1751254243624,-460.0,0.0002043,2]
[368634507,1751254243633,-460.0,0.0002043,2]
[368634508,1751254243643,-460.0,0.0002043,2]
[368634509,1751254243652,-19916.57,0.0002043,2]
[368634510,1751254243662,-460.0,0.0002043,2]
[368634511,1751254243671,-460.0,0.0002043,2]
[368634512,1751254243680,-2713.24,0.0002043,2]
[368634513,1751254243690,-460.0,0.0002043,2]
[368634514,1751254243699,-681.89,0.0002043,2]
[368634515,1751254243710,-687.06,0.0002043,2]
[368634516,1751254243720,-780.26,0.0002043,2]
[368634517,1751254243729,-460.0,0.0002043,2]
[368634518,1751254243739,-312.96504238,0.00020431,2]
[368634519,1751254243749,-460.0,0.00020431,2]
[368634520,1751254243758,-150.46642811,0.00020443,2]
[368634521,1751254243767,-168.0,0.00020538,2]
[368634522,1751254243777,-500.0,0.00020547,14]
[368634523,1751254243788,-153.65980853,0.00020547,11]
[368634524,1751254243798,-151.0,0.00020548,2]
[368634525,1751254243807,-166.751527,0.00020561,4]
[368634526,1751254243817,-1001.04793815,0.00020566,2]
[368634527,1751254243827,-1500.0,0.00020566,2]
[368634528,1751254243837,-1500.0,0.00020571,2]
[368634529,1751254243847,-3129.94025871,0.0002059,3]
[368634530,1751254243856,-160.0,0.0002059,3]
[368634531,1751254243865,-213.84631524,0.0002059,3]
[368634532,1751254243874,-847.41730813,0.0002059,3]
[368634533,1751254243883,-4192.68,0.000206,2]
[368634534,1751254243893,-34289.91336785,0.00020604,2]
[368634535,1751254243903,-243.52696279,0.00020621,2]
[368634537,1751254243912,-888.419,0.00020673,2]
[368634539,1751254243921,-833.48,0.00020702,2]
[368634540,1751254243930,-575.88,0.00020702,2]
[368634542,1751254243941,-460.0,0.00020703,2]
[368634543,1751254243950,-460.0,0.00020703,2]
[368634544,1751254243960,-460.0,0.00020703,2]
[368634545,1751254243971,-460.0,0.00020703,2]
[368634546,1751254243980,-1260.58,0.00020703,2]
[368634547,1751254243990,-460.0,0.00020703,2]
[368634548,1751254244001,-1746.41,0.00020703,2]
[368634549,1751254244012,-1131.52,0.00020703,2]
[368634550,1751254244022,-460.0,0.00020703,2]
[368634551,1751254244032,-870.28,0.00020703,2]
[368634552,1751254244042,-460.0,0.00020703,2]
[368634553,1751254244052,-1110.83,0.00020703,2]
[368634554,1751254244062,-460.0,0.00020703,2]
[368634555,1751254244072,-1741.06,0.00020703,2]
[368634556,1751254244081,-1280.47,0.00020703,2]
[368634557,1751254244091,-460.0,0.00020703,2]
[368634558,1751254244100,-460.0,0.00020703,2]
[368634559,1751254244110,-782.07,0.00020703,2]
[368634560,1751254244120,-460.0,0.00020703,2]
[368634561,1751254244129,-460.0,0.00020703,2]
[368634562,1751254244139,-153.106952,0.00020704,2]
[368634563,1751254244148,-844.52,0.00020704,2]
[368634564,1751254244158,-460.0,0.00020704,2]
[368634565,1751254244167,-277.04518895,0.00020704,2]
[368634566,1751254244178,-460.0,0.00020704,2]
[368634567,1751254244193,-460.0,0.00020704,2]
[368634568,1751254244203,-460.0,0.00020704,2]
[368634569,1751254244213,-460.0,0.00020704,2]
[368634570,1751254244223,-19916.57,0.00020704,2]
[368634571,1751254244233,-460.0,0.00020704,2]
[368634572,1751254244243,-460.0,0.00020704,2]
[368634573,1751254244252,-2713.24,0.00020704,2]
[368634574,1751254244263,-460.0,0.00020704,2]
[368634575,1751254244272,-681.89,0.00020704,2]
[368634576,1751254244282,-687.06,0.00020704,2]
[368634577,1751254244291,-780.26,0.00020704,2]
[368634578,1751254244300,-460.0,0.00020704,2]
[368634579,1751254244309,-460.0,0.00020705,2]
[368634580,1751254244318,-168.0,0.00020734,2]
[368634581,1751254244328,-193.38486649,0.00020747,2]
[368634582,1751254244337,-3129.94025871,0.00020762,3]
[368634583,1751254244347,-151.0,0.00020769,2]
[368634584,1751254244357,-151.0,0.00020769,2]
[368634585,1751254244366,-151.0,0.00020769,2]
[368634586,1751254244375,-151.0,0.0002077,2]
[368634587,1751254244384,-12569.13231816,0.0002077,3]
[368634588,1751254244393,-151.0,0.0002077,2]
[368634589,1751254244402,-151.0,0.0002077,2]
[368634590,1751254244412,-151.0,0.0002077,2]
[368634591,1751254244421,-151.0,0.0002077,2]
[368634592,1751254244430,-1015.98801501,0.00020775,2]
[368634593,1751254244440,-12500.0,0.00020795,2]
[368634594,1751254244449,-1095.13930712,0.00020796,2]
[368634595,1751254244459,-12500.0,0.00020803,2]
[368634596,1751254244469,-151.0,0.00020812,2]
[368634597,1751254244479,-12500.0,0.00020812,2]
[368634598,1751254244488,-12500.0,0.00020821,2]
[368634599,1751254244498,-151.0,0.000209,4]
[368634600,1751254244509,-3129.94025871,0.00020934,4]
[368634601,1751254244518,-223.0315306,0.00020965,2]
[368634602,1751254244528,-833.48,0.00020976,2]
[368634603,1751254244538,-575.88,0.00020976,2]
[368634604,1751254244547,-460.0,0.00020977,2]
[368634605,1751254244557,-460.0,0.00020977,2]
[368634606,1751254244567,-151.0,0.00020977,2]
[368634607,1751254244577,-151.0,0.00020977,2]
[368634608,1751254244587,-460.0,0.00020977,2]
[368634609,1751254244597,-460.0,0.00020977,2]
[368634610,1751254244607,-288.295922,0.00020977,2]
[368634611,1751254244616,-1260.58,0.00020977,2]
[368634612,1751254244626,-474.87726275,0.00020977,2]
[368634613,1751254244635,-1746.41,0.00020977,2]
[368634614,1751254244645,-1131.52,0.00020977,2]
[368634615,1751254244654,-420.64860662,0.00020977,2]
[368634616,1751254244663,-870.28,0.00020977,2]
[368634617,1751254244673,-460.0,0.00020977,2]
[368634618,1751254244682,-1110.83,0.00020977,2]
[368634619,1751254244691,-460.0,0.00020977,2]
[368634620,1751254244701,-1741.06,0.00020977,2]
[368634621,1751254244711,-1280.47,0.00020977,2]
[368634622,1751254244720,-397.36757999,0.00020977,2]
[368634623,1751254244729,-460.0,0.00020977,2]
[368634624,1751254244738,-782.07,0.00020977,2]
[368634625,1751254244748,-460.0,0.00020977,2]
[368634626,1751254244757,-460.0,0.00020977,2]
[368634627,1751254244766,-844.52,0.00020978,2]
[368634628,1751254244776,-460.0,0.00020978,2]
[368634629,1751254244785,-460.0,0.00020978,2]
[368634630,1751254244795,-460.0,0.00020978,2]
[368634631,1751254244804,-460.0,0.00020978,2]
[368634632,1751254244814,-460.0,0.00020978,2]
[368634633,1751254244823,-19916.57,0.00020978,2]
[368634634,1751254244833,-460.0,0.00020978,2]
[368634635,1751254244842,-460.0,0.00020978,2]
[368634636,1751254244851,-2713.24,0.00020978,2]
[368634637,1751254244861,-460.0,0.00020978,2]
[368634638,1751254244871,-681.89,0.00020978,2]
[368634639,1751254244880,-687.06,0.00020978,2]
[368634640,1751254244889,-780.26,0.00020978,2]
[368634641,1751254244899,-460.0,0.00020978,2]
[368634642,1751254244908,-460.0,0.00020979,2]
[368634643,1751254244917,-500.0,0.00021,2]
[368634644,1751254244927,-151.0,0.00021044,4]
[368634645,1751254244937,-515.43972925,0.00021095,15]
[368634646,1751254244946,-2576.65,0.000211,2]
[368634647,1751254244956,-3129.94025871,0.00021107,4]
[368634648,1751254244965,-2000.0,0.00021114,2]
[368634649,1751254244975,-2000.0,0.00021119,2]
[368634650,1751254244984,-168.0,0.00021146,2]
[368634651,1751254244993,-168.0,0.00021198,2]
[368634652,1751254245003,-151.0,0.000212,4]
[368634653,1751254245012,-151.0,0.00021235,4]
[368634654,1751254245022,-378426.82718239,0.0002125,2]
[368634655,1751254245148,-460.0,0.00018237,2]
[368634656,1751254245158,-460.0,0.00018511,2]
[368634657,1751254245168,-460.0,0.00018511,2]
[368634658,1751254245178,-460.0,0.00018785,2]
[368634659,1751254245190,-460.0,0.00019059,2]
[368634660,1751254245200,-306.23366708,0.00019333,2]
[368634661,1751254245212,-153.76633292,0.00019333,2]
[368634662,1751254245222,-460.0,0.00019607,2]
[368634663,1751254245232,-460.0,0.00019881,2]
[368634664,1751254245242,-584.44822844,0.00020155,2]
[368634665,1751254245251,-1431.56751469,0.0002125,2]
[368634666,1751254245265,-5088.7257288,0.0002125,2]
[368634667,1751254245325,-267.99341136,0.00018239,2]
[368634668,1751254245335,-460.0,0.00018785,2]
[368634669,1751254245345,-460.0,0.00019059,2]
[368634670,1751254245354,-460.0,0.00019333,2]
[368634671,1751254245364,-396.64,0.00019607,2]
[368634672,1751254245373,-1631.87368698,0.0002125,2]
[368634673,1751254245384,-7706.86271772,0.0002125,2]
[368634674,1751254245396,-916.83381796,0.0002125,2]
[368634675,1751254245408,-59801.56306206,0.0002125,2]
[368634688,1751254247998,-460.0,0.00018237,2]
[368634689,1751254248008,-460.0,0.00018511,2]
[368634691,1751254248153,-460.0,0.00018785,2]
[368634692,1751254248162,-1863.79711304,0.00019507,2]
[368634693,1751254300124,202.391664,0.00013699,2]
[368634696,1751254632236,36928.70348996,0.00023,30]
[368634697,1751254658086,23015.2454022,0.00017302,2]
[368634698,1751254658731,-154.7078932,0.00018138,2]
[368634703,1751254806940,-163.89413252,0.00018138,2]
[368634705,1751254846846,29703.3681434,0.00023,30]
[368634706,1751254857428,67186.13556342,0.00023,30]
[368634707,1751254870806,8174.52000362,0.00023,30]
[368634708,1751254880216,205.24770482,0.00023,30]
[368634709,1751254892347,206.98230382,0.00023,30]
[368634710,1751254914009,83780.12229176,0.00023,30]
[368634716,1751254968285,-152.0,0.00018137,2]
[368634717,1751254974737,-13.28001371,0.00018137,2]
[368634718,1751255086547,177.166657,0.00023,30]
[368634719,1751255119104,-158.63446682,0.00018136,2]
[368634903,1751255437907,-158.63446682,0.00018136,2]
[368634905,1751255437918,-200.0,0.00018167,2]
[368634907,1751255437927,-207.4,0.00018225,2]
[368634908,1751255437937,-300.0,0.00018233,2]
[368634909,1751255437947,-300.0,0.00018233,2]
[368634910,1751255437956,-300.0,0.00018233,2]
[368634911,1751255437965,-300.0,0.00018233,2]
[368634912,1751255437975,-562.51634819,0.00018233,2]
[368634913,1751255437987,-637.48365181,0.00018233,2]
[368634914,1751255437996,-460.0,0.00018234,2]
[368634915,1751255438005,-665.47,0.00018234,2]
[368634916,1751255438014,-443.87033446,0.00018235,2]
[368634917,1751255438023,-399.36013052,0.00018235,2]
[368634918,1751255438033,-460.0,0.00018235,2]
[368634919,1751255438042,-460.0,0.00018235,2]
[368634920,1751255438052,-460.0,0.00018235,2]
[368634921,1751255438063,-1102.95,0.00018235,2]
[368634922,1751255438072,-460.0,0.00018235,2]
[368634923,1751255438082,-991.53,0.00018235,2]
[368634924,1751255438092,-460.0,0.00018235,2]
[368634925,1751255438101,-460.0,0.00018235,2]
[368634926,1751255438110,-972.52,0.00018235,2]
[368634927,1751255438119,-1388.32,0.00018235,2]
[368634928,1751255438128,-460.0,0.00018235,2]
[368634929,1751255438138,-1019.72,0.00018235,2]
[368634930,1751255438147,-624.41,0.00018235,2]
[368634931,1751255438156,-460.0,0.00018235,2]
[368634932,1751255438166,-460.0,0.00018235,2]
[368634933,1751255438174,-460.0,0.00018235,2]
[368634934,1751255438183,-460.0,0.00018235,2]
[368634935,1751255438192,-460.0,0.00018235,2]
[368634936,1751255438202,-460.0,0.00018235,2]
[368634937,1751255438211,-208.33035161,0.00018235,2]
[368634938,1751255438223,-291.66964839,0.00018235,2]
[368634939,1751255438232,-500.0,0.00018235,2]
[368634940,1751255438241,-550.0,0.00018235,2]
[368634941,1751255438251,-56.4072347,0.00018235,2]
[368634942,1751255438428,-443.5927653,0.00018235,2]
[368634943,1751255438438,-160.13690056,0.00018235,2]
[368634944,1751255438448,-500.0,0.00018235,2]
[368634945,1751255438458,-500.0,0.00018235,2]
[368634946,1751255438467,-500.0,0.00018235,2]
[368634947,1751255438476,-500.0,0.00018235,2]
[368634948,1751255438485,-500.0,0.00018235,2]
[368634949,1751255438495,-500.0,0.00018235,2]
[368634950,1751255438504,-500.0,0.00018235,2]
[368634951,1751255438513,-500.0,0.00018235,2]
[368634952,1751255438523,-500.0,0.00018235,2]
[368634953,1751255438532,-500.0,0.00018235,2]
[368634954,1751255438541,-500.0,0.00018235,2]
[368634955,1751255438550,-500.0,0.00018235,2]
[368634956,1751255438560,-500.0,0.00018235,2]
[368634957,1751255438573,-500.0,0.00018235,2]
[368634958,1751255438583,-500.0,0.00018235,2]
[368634959,1751255438592,-583.39404208,0.00018235,2]
[368634960,1751255438602,-224.44204046,0.00018235,2]
[368634961,1751255438613,-500.0,0.00018235,2]
[368634962,1751255438622,-477.86487772,0.00018236,2]
[368634963,1751255438631,-470.10112128,0.00018236,2]
[368634964,1751255438642,-460.0,0.00018236,2]
[368634965,1751255438652,-410.96999131,0.00018236,2]
[368634966,1751255438661,-150.46642811,0.00018236,2]
[368634967,1751255438671,-460.0,0.00018236,2]
[368634968,1751255438681,-460.0,0.00018236,2]
[368634969,1751255438690,-460.0,0.00018236,2]
[368634970,1751255438701,-460.0,0.00018236,2]
[368634971,1751255438710,-654.38,0.00018236,2]
[368634972,1751255438720,-460.0,0.00018236,2]
[368634973,1751255438729,-460.0,0.00018236,2]
[368634974,1751255438739,-460.0,0.00018236,2]
[368634975,1751255438748,-460.0,0.00018236,2]
[368634976,1751255438758,-691.04,0.00018236,2]
[368634977,1751255438769,-460.0,0.00018236,2]
[368634978,1751255438779,-460.0,0.00018236,2]
[368634979,1751255438789,-460.0,0.00018236,2]
[368634980,1751255438799,-460.0,0.00018236,2]
[368634981,1751255438808,-460.0,0.00018236,2]
[368634982,1751255438818,-7053.78,0.00018236,2]
[368634983,1751255438827,-460.0,0.00018236,2]
[368634984,1751255438837,-460.0,0.00018236,2]
[368634985,1751255438846,-271.88558948,0.00018236,2]
[368634986,1751255438856,-460.0,0.00018236,2]
[368634987,1751255438866,-460.0,0.00018236,2]
[368634988,1751255438875,-1981.85,0.00018236,2]
[368634989,1751255438885,-520.18,0.00018236,2]
[368634990,1751255438894,-502.89,0.00018236,2]
[368634991,1751255438904,-460.0,0.00018236,2]
[368634992,1751255438913,-508.72,0.00018236,2]
[368634993,1751255438922,-460.0,0.00018236,2]
[368634994,1751255438933,-460.0,0.00018236,2]
[368634995,1751255438942,-460.0,0.00018236,2]
[368634996,1751255438952,-727.98,0.00018236,2]
[368634997,1751255438962,-1258.77,0.00018236,2]
[368634998,1751255438971,-460.0,0.00018236,2]
[368634999,1751255438980,-460.0,0.00018236,2]
[368635000,1751255438990,-232.54584139,0.00018236,2]
[368635001,1751255439000,-467.43120332,0.00018238,2]
[368635002,1751255439010,-864.53,0.00018238,2]
[368635003,1751255439020,-638.87,0.00018238,2]
[368635004,1751255439030,-1146.06,0.00018238,2]
[368635005,1751255439040,-460.0,0.00018238,2]
[368635006,1751255439050,-460.0,0.00018238,2]
[368635007,1751255439060,-1167.25,0.00018238,2]
[368635008,1751255439070,-3093.75,0.00018238,2]
[368635009,1751255439080,-460.0,0.00018508,2]
[368635010,1751255439090,-665.47,0.00018508,2]
[368635011,1751255439099,-460.0,0.00018509,2]
[368635012,1751255439109,-460.0,0.00018509,2]
[368635013,1751255439118,-1102.95,0.00018509,2]
[368635014,1751255439128,-460.0,0.00018509,2]
[368635015,1751255439138,-991.53,0.00018509,2]
[368635016,1751255439147,-460.0,0.00018509,2]
[368635017,1751255439157,-972.52,0.00018509,2]
[368635018,1751255439167,-1388.32,0.00018509,2]
[368635019,1751255439176,-460.0,0.00018509,2]
[368635020,1751255439185,-1019.72,0.00018509,2]
[368635021,1751255439195,-624.41,0.00018509,2]